[Event "7th Sharjah Masters 2024"]
[Site "Sharjah"]
[Date "2024.05.14"]
[Round "1.6"]
[White "Daneshvar, Bardiya"]
[Black "Sarana, Alexey"]
[Result "1/2-1/2"]
[ECO "E07"]
[WhiteElo "2582"]
[BlackElo "2706"]
[Annotator "TA"]
[PlyCount "122"]
[EventDate "2024.05.13"]
[EventType "swiss"]
[EventCountry "UAE"]
[SourceTitle "playchess.com"]
[Source "ChessBase"]
[SourceQuality "1"]
[TimeControl "5400+30"]

{[%evp 46,122,0,0,-23,-4,-4,0,-4,-8,0,-8,0,0,10,10,18,16,11,-23,-29,-31,-41,-23,-11,-20,-15,-21,-12,-19,-13,-26,-29,-17,-18,-25,0,0,0,0,0,0,0,0,0,0,0,0,0,-8,-8,-8,0,0,0,-8,-8,-8,0,-8,0,0,0,0,0,0,0,0,0,0,0,0,0,0,0,0,0,0,0]} 1. Nf3 {[%emt 0:00:03]} d5 {[%emt 0:00:06]} 2. c4 {[%emt 0:00:04]} e6 {[%emt 0:00:14]} 3. g3 {[%emt 0:00:08]} Nf6 {[%emt 0:00:05]} 4. Bg2 {[%emt 0:00:06]} Be7 {[%emt 0:00:05]} 5. O-O {[%emt 0:00:10]} O-O {[%emt 0:00:07]} 6. d4 {[%emt 0:00:02]} c6 {[%emt 0:00:33]} 7. Nc3 {[%emt 0:00:12]} Nbd7 {[%emt 0:01:36]} 8. Qd3 {[%emt 0:06:32]} b6 {[%emt 0:00:58]} 9. e4 {[%emt 0:10:24]} Ba6 {[%emt 0:00:56]} 10. b3 {[%emt 0:00:48]} dxe4 {[%emt 0:01:05] E07: Closed Catalan: Main Line (5 Nf3 0-0 6 0-0 Nbd7).} 11. Nxe4 {[%emt 0:00:10]} b5 {[%emt 0:00:03]} 12. c5 {[%emt 0:09:44]} Nxc5 {[%emt 0:04:33]} 13. Nxf6+ $146 {[%emt 0:01:38]} ({Predecessor:} 13. Nxc5 Bxc5 14. Qc2 Bb6 15. Rd1 Bb7 16. a4 h6 17. Ba3 Re8 18. Bc5 bxa4 19. bxa4 {1-0 Erdos,V (2612)-Zajic,M (2485) EU-ch 20th Skopje 2019 (9)}) 13... Bxf6 {[%emt 0:00:22]} 14. Qc2 {[%emt 0:00:12]} Nd7 {[%emt 0:00:21]} 15. Qxc6 {[%emt 0:03:08]} Nb6 {[%emt 0:02:34]} 16. Bd2 {[%emt 0:06:33]} Rc8 {[%emt 0:03:36]} 17. Qe4 {[%emt 0:00:08]} Nd5 {[%emt 0:00:34]} 18. Rfc1 {[%emt 0:03:59]} Qd6 {[%emt 0:03:52]} 19. Ne5 {[%emt 0:12:51]} b4 {[%emt 0:09:27]} 20. Ng4 {[%emt 0:03:36]} Be7 {[%emt 0:02:00]} 21. Ne3 {[%emt 0:02:22]} Nc3 {[%emt 0:02:49]} 22. Bxc3 {[%emt 0:00:11]} bxc3 {[%emt 0:00:21]} 23. Bf1 {[%emt 0:07:45] [#]} f5 {[%emt 0:13:46]} (23... Bxf1 $1 $17 24. Rxf1 Rfd8) 24. Qe5 $11 {[%emt 0:00:13]} Qxe5 {[%emt 0:00:14]} 25. dxe5 {[%emt 0:00:04]} Bxf1 {[%emt 0:00:05]} 26. Kxf1 {[%emt 0:03:25]} f4 {[%emt 0:02:45]} 27. Nc4 {[%emt 0:02:29]} fxg3 {[%emt 0:11:08]} 28. hxg3 {[%emt 0:00:10]} Rf3 {[%emt 0:00:11]} 29. Nd6 $1 {[%emt 0:05:28]} Rcf8 {[%emt 0:07:39]} 30. Ne4 {[%emt 0:02:03]} Ba3 {[%emt 0:07:07]} (30... R8f5 {simplifies} 31. Rxc3 Rxc3 32. Nxc3 Rxe5 33. Rd1 a5) 31. Rc2 $1 {[%emt 0:01:08]} (31. Rxc3 $2 Rxc3 32. Nxc3 Bb2 $19) 31... R3f5 {[%emt 0:00:05]} 32. Nd6 {[%emt 0:07:31]} (32. Nxc3 Rc8 33. f4 g5 $19) (32. Rxc3 $2 Bb2 (32... Rxe5 33. Rc4 $16) 33. Rac1 Rxe5 $19) 32... Rxe5 {[%emt 0:02:39]} 33. Nc4 {[%emt 0:00:18]} Rh5 {[%emt 0:00:02]} 34. Kg2 $1 {[%emt 0:02:09]} Bc5 {[%emt 0:00:02]} 35. Re1 $1 {[%emt 0:03:58]} Rhf5 {[%emt 0:03:55]} 36. f4 {[%emt 0:04:24]} g5 {[%emt 0:03:54]} 37. Ne3 {[%emt 0:00:07]} R5f7 {[%emt 0:00:29]} 38. fxg5 {[%emt 0:02:26]} Rf3 {[%emt 0:00:10]} 39. Ng4 {[%emt 0:00:35]} Rd3 {[%emt 0:00:01]} 40. Nf6+ {[%emt 0:01:00]} Kg7 {[%emt 0:03:39]} 41. Rxe6 {[%emt 0:01:13]} Rd2+ {[%emt 0:16:52]} 42. Re2 {[%emt 0:00:01]} Rxe2+ {[%emt 0:00:00]} 43. Rxe2 {[%emt 0:00:01]} Bd4 {[%emt 0:00:00]} 44. Nh5+ {[%emt 0:00:49]} Kf7 {[%emt 0:00:00]} 45. Kf3 {[%emt 0:00:52]} Rc8 {[%emt 0:00:00]} 46. Rc2 {[%emt 0:00:01]} Rc5 {[%emt 0:00:00]} 47. Nf4 {[%emt 0:01:39]} Rxg5 {[%emt 0:00:00]} 48. Ne2 {[%emt 0:00:01]} Bf6 {[%emt 0:00:00]} 49. Ke4 {[%emt 0:00:26]} (49. Nxc3 $2 {is the wrong capture.} Rc5 50. Rd2 Rxc3+ $19 (50... Bxc3 $2 51. Rd7+ Kg6 52. Rxa7 $19)) 49... Re5+ {[%emt 0:00:53]} 50. Kd3 {[%emt 0:00:41]} Rd5+ {[%emt 0:00:03]} 51. Ke3 $1 {[%emt 0:00:03]} Rg5 {[%emt 0:00:57]} 52. Ke4 {[%emt 0:01:02]} Rg4+ {[%emt 0:00:07]} 53. Kf3 {[%emt 0:00:57]} Rg8 {[%emt 0:00:02]} 54. Ke4 {[%emt 0:00:05]} (54. Nxc3 $2 {loses.} Rc8 55. Rd2 Rxc3+ $19) 54... Re8+ {[%emt 0:00:56]} 55. Kd3 {[%emt 0:00:13]} Rd8+ {[%emt 0:00:06]} 56. Ke3 $1 {[%emt 0:00:12]} Bg5+ {[%emt 0:00:19]} 57. Kf2 {[%emt 0:00:11]} Bf6 {[%emt 0:00:22]} 58. Ke3 {[%emt 0:00:06]} Rg8 {[%emt 0:00:23]} 59. Ke4 {[%emt 0:00:19]} h5 {[%emt 0:00:45]} 60. Nxc3 {[%emt 0:00:09]} Rxg3 {[%emt 0:00:05]} 61. Nd5 {[%emt 0:00:19]} Rg4+ {[%emt 0:00:18]} 1/2-1/2

[Event "7th Sharjah Masters 2024"]
[Site "Sharjah"]
[Date "2024.05.14"]
[Round "1.7"]
[White "Artemiev, Vladislav"]
[Black "Moroni, Luca Jr"]
[Result "1/2-1/2"]
[ECO "C78"]
[WhiteElo "2705"]
[BlackElo "2581"]
[Annotator "TA"]
[PlyCount "130"]
[EventDate "2024.05.13"]
[EventType "swiss"]
[EventCountry "UAE"]
[SourceTitle "playchess.com"]
[Source "ChessBase"]
[SourceQuality "1"]
[TimeControl "5400+30"]

{[%evp 15,130,22,18,22,16,29,25,25,39,1,11,16,28,19,13,8,13,7,18,17,16,17,12,13,9,16,12,15,16,17,18,17,23,0,14,0,0,0,0,0,16,22,22,24,24,29,28,28,84,33,69,0,87,85,87,14,14,14,65,0,8,8,29,29,29,34,29,35,73,75,72,73,72,41,41,1,8,0,0,0,0,0,0,0,0,0,0,0,0,0,2,3,3,0,1,4,15,10,12,0,0,0,0,0,0,-1,-1,-1,-1,-1,-1,-1,-1,-2,-2,-8,29989]} 1. e4 {[%emt 1:31:00]} e5 {[%emt 1:31:00]} 2. Nf3 {[%emt 0:00:30]} Nc6 {[%emt 0:00:30]} 3. Bb5 {[%emt 0:00:30]} a6 {[%emt 0:00:30]} 4. Ba4 {[%emt 0:00:30]} Nf6 {[%emt 0:00:30]} 5. O-O {[%emt 0:00:30]} b5 {[%emt 0:00:30]} 6. Bb3 {[%emt 0:00:30]} Bc5 {[%emt 0:00:30]} 7. a4 {[%emt 0:00:30]} Rb8 {[%emt 0:00:30]} 8. axb5 {[%emt 0:00:30]} axb5 {[%emt 0:00:30] [#]} 9. Nxe5 $1 {[%emt 0:00:30]} Nxe5 {[%emt 0:00:30]} 10. d4 {[%emt 0:00:30]} Bxd4 {[%emt 0:00:30]} 11. Qxd4 {[%emt 0:00:30] White has an edge.} d6 {[%emt 0:00:30]} 12. f4 {[%emt 0:00:30]} Nc6 {[%emt 0:00:30]} 13. Qd3 {[%emt 0:00:30][%cal Oe4e5]} O-O {[%emt 0:00:30][%cal Bh8f8,Bf8e8,Be8e5][%mdl 32]} 14. Nc3 {[%emt 0:00:30]} Re8 {[%emt 0:00:30]} 15. e5 {[%emt 0:00:30]} dxe5 {[%emt 0:00:30]} 16. Qxd8 {[%emt 0:00:30]} Nxd8 {[%emt 0:00:30]} 17. fxe5 {[%emt 0:00:30]} Rxe5 {[%emt 0:00:30]} 18. Bf4 {[%emt 0:00:30][%cal Bc1f4,Bf4e3,Be3a7][%mdl 32]} Rc5 {[%emt 0:00:30]} 19. Be3 {[%emt 0:00:30] This pair of bishops is nice.} Rf5 {[%emt 0:00:30]} 20. Ba7 {[%emt 0:00:30]} Ra8 {[%emt 0:00:30]} 21. Rxf5 {[%emt 0:00:30]} Bxf5 {[%emt 0:00:30]} 22. Nxb5 {[%emt 0:00:30]} Nc6 {[%emt 0:00:30]} 23. Ra4 {[%emt 0:00:30]} h5 {[%emt 0:00:30]} 24. h3 {[%emt 0:00:30]} (24. Nxc7 $2 {perishes.} Rxa7 25. Rxa7 Nxa7 $19) 24... Nxa7 {[%emt 0:00:30]} 25. Nxc7 {[%emt 0:00:30]} Rd8 {[%emt 0:00:30]} 26. Rxa7 {[%emt 0:00:30]} Rd1+ {[%emt 0:00:30]} 27. Kf2 {[%emt 0:00:30]} Rd2+ {[%emt 0:00:30]} 28. Ke1 {[%emt 0:00:30]} Rxg2 {[%emt 0:00:30]} 29. Nd5 {[%emt 0:00:30] And now Ne7+ would win.} Bxh3 {[%emt 0:00:30]} 30. Nxf6+ {[%emt 0:00:30]} gxf6 {[%emt 0:00:30]} 31. Rxf7 $11 {[%emt 0:00:30][%mdl 4096] Endgame. KRB-KRB} ({Much worse is} 31. Bxf7+ Kh8 $17) 31... Bg4 {[%emt 0:00:30]} (31... Rg1+ $11 {remains equal.} 32. Kd2 (32. Kf2 Rg2+ 33. Kf3 Rg1 $14) 32... Rg2+ 33. Ke1 Rg1+ 34. Kf2 Rg2+ 35. Kf3 Rg1) 32. Kf1 {[%emt 0:00:30]} (32. Rxf6+ $16 Kh7 33. Bc4) 32... Bh3 {[%emt 0:00:30] White must now prevent ...Rg7+.} 33. Ke1 {[%emt 0:00:30]} Bg4 {[%emt 0:00:30]} 34. Rxf6+ {[%emt 0:00:30]} Kg7 {[#]} 35. Rf4 {[%emt 0:00:30]} ({White should play} 35. Rf2 $1 $16 {[%cal Rf2g2]} Rxf2 36. Kxf2) 35... Kh6 {[%emt 0:01:00]} 36. Kf1 {[%emt 0:00:30]} Bh3 {[%emt 0:00:30]} ({Black should try} 36... Rd2 $11) 37. Rf2 {[%emt 0:00:30]} (37. Rh4 $14 Rxc2+ 38. Rxh3 Rxb2 39. Bc4) 37... Rg5+ {[%emt 0:00:30]} 38. Ke2 {[%emt 0:00:30]} h4 {[%emt 0:00:30][%cal Bh5h4,Bh4h3,Bh3h2][%mdl 32]} 39. Rf6+ {[%emt 0:00:30]} Kg7 {[%emt 0:00:30]} 40. Rf4 {[%emt 0:00:30]} Bg4+ {[%emt 0:00:30]} 41. Ke3 {[%emt 0:00:30]} h3 {[%emt 0:00:30] [#] Strongly threatening ...h2.} 42. Bd5 $1 {[%emt 0:00:30]} h2 {[%emt 0:00:30]} 43. Bh1 {[%emt 0:00:30] White is more active.} Bf5 {[%emt 0:00:30][%cal Og5g1]} 44. Rf2 {[%emt 0:00:30]} (44. Rh4 {simplifies} Bxc2 45. Rxh2 Bg6 46. b4) 44... Rh5 {[%emt 0:00:30]} 45. Kf4 {[%emt 0:00:30]} Kf6 {[%emt 0:00:30] The position is equal.} 46. c3 {[%emt 0:00:30]} Rh4+ {[%emt 0:00:30]} 47. Kg3 {[%emt 0:00:30]} Rh3+ {[%emt 0:00:30]} 48. Kg2 {[%emt 0:00:30][%cal Of2f5] Intending Rxf5+! and mate.} Rh8 {[%emt 0:00:30]} 49. Re2 {[%emt 0:00:30]} Kg5 {[%emt 0:00:30]} 50. Kg3 {[%emt 0:00:30]} Rh3+ {[%emt 0:00:30]} 51. Kf2 {[%emt 0:00:30]} Kf4 {[%emt 0:00:30]} 52. Rd2 {[%emt 0:00:30]} Bg4 {[%emt 0:00:30]} 53. Rd4+ {[%emt 0:00:30]} Kg5 54. Rd8 {[%emt 0:00:30]} Rf3+ {[%emt 0:01:00]} 55. Kg2 {[%emt 0:00:30]} Re3 {[%emt 0:00:30]} 56. Rd2 {[%emt 0:00:30]} (56. Kxh2 {simplifies} Re2+ 57. Bg2 Rxb2 58. Kg3) 56... Rh3 {[%emt 0:00:30]} 57. Rf2 {[%emt 0:00:30]} Rh8 {[%emt 0:00:30]} 58. b4 {[%emt 0:00:30]} Rc8 {[%emt 0:00:30]} 59. Rc2 {[%emt 0:00:30]} Bf5 {[%emt 0:00:30]} 60. Rc1 {[%emt 0:00:30]} Be4+ {[%emt 0:00:30]} 61. Kg3 {[%emt 0:00:30]} Bxh1 {[%emt 0:00:30]} 62. Rxh1 {[%emt 0:00:30]} Rxc3+ {[%emt 0:00:30]} 63. Kxh2 {[%emt 0:00:30]} Rb3 {[%emt 0:00:30]} 64. Rg1+ {[%emt 0:00:30]} Kf5 {[%emt 0:00:30]} 65. Rg3 {[%emt 0:00:30] [#]} Ke5 $2 {[%emt 0:00:30][%mdl 40960] Weighted Error Value: White=0.08 (flawless) /Black=0.05 (flawless) .  Loses game:     	---       	Black=1      Mistake:       	White=3     	Black=2      Inaccurate:     	White=3     	Black=2      OK:         	White=29    	Black=34     Best:        	White=5     	Black=1      Brilliant:      	White=1     	---       . An unexpected result.} 1/2-1/2

[Event "7th Sharjah Masters 2024"]
[Site "Sharjah"]
[Date "2024.05.14"]
[Round "1.8"]
[White "Gurel, Ediz"]
[Black "Esipenko, Andrey"]
[Result "1/2-1/2"]
[ECO "C77"]
[WhiteElo "2578"]
[BlackElo "2704"]
[Annotator "TA"]
[PlyCount "74"]
[EventDate "2024.05.13"]
[EventType "swiss"]
[EventCountry "UAE"]
[SourceTitle "playchess.com"]
[Source "ChessBase"]
[SourceQuality "1"]
[TimeControl "5400+30"]

{[%evp 16,74,9,7,14,26,20,23,19,-4,26,16,21,0,26,31,31,28,31,39,24,34,50,28,43,50,48,31,68,77,56,47,44,0,60,33,37,12,22,7,22,6,2,4,9,6,32,0,0,0,0,0,0,0,0,0,0,0,0,0,0]} 1. e4 {[%emt 0:00:04]} e5 {[%emt 0:00:12]} 2. Nf3 {[%emt 0:00:10]} Nc6 {[%emt 0:00:08]} 3. Bb5 {[%emt 0:00:09]} a6 {[%emt 0:00:09]} 4. Ba4 {[%emt 0:00:06]} Nf6 {[%emt 0:00:09]} 5. O-O {[%emt 0:00:08]} Be7 {[%emt 0:00:07]} 6. d3 {[%emt 0:00:13]} b5 {[%emt 0:00:17]} 7. Bb3 {[%emt 0:00:05]} d6 {[%emt 0:00:23]} 8. a3 {[%emt 0:00:11]} O-O {[%emt 0:03:55]} 9. Nc3 {[%emt 0:00:12]} Rb8 {[%emt 0:03:47]} 10. Be3 {[%emt 0:00:15]} h6 {[%emt 0:08:51]} 11. h3 {[%emt 0:00:15]} Re8 {[%emt 0:03:24][%cal Bf8e8,Be8e6,Be6f6][%mdl 32] White has an edge.} 12. Nh2 {[%emt 0:00:26]} Bf8 {[%emt 0:07:08]} 13. f4 {[%emt 0:00:20]} exf4 {[%emt 0:00:32]} 14. Bxf4 {[%emt 0:00:05]} Be6 {[%emt 0:02:21]} 15. Bxe6 {[%emt 0:02:21]} Rxe6 {[%emt 0:00:20]} 16. Bg3 {[%emt 0:00:19]} Ne5 {[%emt 0:20:38]} ({Of course not} 16... d5 17. Rxf6 Rxf6 (17... Qxf6 $2 {loses.} 18. exd5 Ree8 19. dxc6 $18) 18. Nxd5 $16) 17. Nf3 {[%emt 0:01:56]} c5 {[%emt 0:09:37] Prevents Nd4.} 18. Bh4 {[%emt 0:04:10]} Ng6 {[%emt 0:03:30]} 19. Bxf6 $1 {[%emt 0:02:49]} Rxf6 {[%emt 0:01:13]} 20. Nd5 {[%emt 0:02:26][%cal Bc3d5,Bd5f4,Bf4h5][%mdl 32]} Re6 {[%emt 0:00:01]} 21. Qd2 {[%emt 0:04:37]} Ne7 {[%emt 0:01:07]} 22. Nf4 {[%emt 0:03:24] White is much more active. Excellent horsemanship.} Rf6 {[%emt 0:00:26]} 23. Nh5 {[%emt 0:01:31]} Re6 {[%emt 0:00:48]} 24. Nf4 {[%emt 0:01:03] Repels Ng6} Rf6 {[%emt 0:00:45]} 25. Rae1 {[%emt 0:07:19]} Rb7 {[%emt 0:10:57]} 26. Nh2 {[%emt 0:09:29][%cal Bf3h2,Bh2f1,Bf1e3,Be3d5][%mdl 32] Black must now prevent Ng4.} Ng6 {[%emt 0:00:44]} 27. Nd5 {[%emt 0:04:05]} Rxf1+ {[%emt 0:00:08]} 28. Nxf1 {[%emt 0:00:21]} Ne7 {[%emt 0:02:23]} 29. Nfe3 {[%emt 0:02:26]} Nxd5 {[%emt 0:00:06]} 30. Nxd5 {[%emt 0:00:03]} g6 {[%emt 0:00:06] Black is weak on the light squares} 31. Rf1 {[%emt 0:03:37]} Bg7 {[%emt 0:00:56] The position is equal.} 32. c3 {[%emt 0:00:20]} a5 {[%emt 0:01:08]} 33. Kh1 {[%emt 0:02:37]} Qg5 {[%emt 0:02:18]} 34. Qf2 {[%emt 0:02:52]} Qe5 {[%emt 0:00:25]} 35. Qh4 {[%emt 0:01:22]} Qg5 {[%emt 0:01:17]} 36. Qf2 {[%emt 0:00:08]} Qe5 {[%emt 0:02:04]} 37. Qh4 {[%emt 0:00:50]} Qg5 {[%emt 0:00:22] Weighted Error Value: White=0.06 (flawless) /Black=0.05 (flawless) .  Inaccurate:     	White=2     	Black=3      OK:         	White=11    	Black=17     Best:        	White=1     	Black=2      Strong:       	White=1     	---} 1/2-1/2

[Event "7th Sharjah Masters 2024"]
[Site "Sharjah"]
[Date "2024.05.14"]
[Round "1.9"]
[White "Fedoseev, Vladimir"]
[Black "Peralta, Fernando"]
[Result "1-0"]
[ECO "A18"]
[WhiteElo "2702"]
[BlackElo "2575"]
[Annotator "TA"]
[PlyCount "47"]
[EventDate "2024.05.13"]
[EventType "swiss"]
[EventCountry "UAE"]
[SourceTitle "playchess.com"]
[Source "ChessBase"]
[SourceQuality "1"]
[TimeControl "5400+30"]

{[%evp 10,47,13,20,10,0,16,0,0,0,0,-13,27,13,21,23,30,26,97,87,195,191,197,200,193,189,211,163,234,223,283,258,338,318,316,312,308,295,325,331]} 1. c4 {[%emt 0:00:04]} Nf6 {[%emt 0:01:17]} 2. Nc3 {[%emt 0:00:12]} e6 {[%emt 0:00:08]} 3. e4 {[%emt 0:02:00]} d5 {[%emt 0:00:11]} 4. e5 {[%emt 0:01:03]} d4 {[%emt 0:00:15]} 5. exf6 {[%emt 0:00:23]} dxc3 {[%emt 0:00:05]} 6. bxc3 {[%emt 0:00:22]} Qxf6 {[%emt 0:00:06]} 7. Bd3 {[%emt 0:02:25]} Nc6 {[%emt 0:01:47]} 8. Be4 {[%emt 0:00:58]} e5 {[%emt 0:07:26] Threatening ...Bf5. The position is equal.} 9. Qc2 {[%emt 0:06:30][%cal Og1f3]} g6 {[%emt 0:25:26]} 10. Rb1 {[%emt 0:06:46]} Bh6 {[%emt 0:21:27]} 11. Ne2 {[%emt 0:09:18]} O-O {[%emt 0:00:57]} 12. O-O {[%emt 0:00:13][%cal Of2f4]} Rb8 {[%emt 0:12:39]} 13. f4 {[%emt 0:04:35] And now fxe5 would win.} exf4 {[%emt 0:00:20]} (13... Bxf4 $6 14. g3 $16) (13... Qd6 $11) 14. d4 $16 {[%emt 0:01:24][%cal Re2f4]} Bf5 {[%emt 0:10:32]} (14... Na5 $16) 15. Bxf5 $1 $18 {[%emt 0:01:33]} ({Resist} 15. Bxf4 $6 Bxf4 16. Nxf4 (16. Rxf4 Bxe4 17. Rxe4 Na5 $16) 16... Ne7 $14 (16... Nxd4 17. Nd5 $16)) 15... Qxf5 {[%emt 0:00:07]} 16. Qxf5 {[%emt 0:00:02]} gxf5 {[%emt 0:00:05]} 17. Nxf4 {[%emt 0:03:32]} Rfe8 {[%emt 0:02:02]} 18. Rb5 {[%emt 0:00:44] Repels Na5} Ne7 {[%emt 0:01:49]} (18... b6 $142 19. Rxf5 (19. Nd5 Bxc1 20. Nf6+ Kh8 $18) 19... Ne7) 19. Nh5 {[%emt 0:02:43]} Bg7 {[%emt 0:01:37]} 20. Bf4 {[%emt 0:03:58][%cal Bc1f4,Bf4c7,Bc7b6][%mdl 32] White has a decisive advantage.} a6 {[%emt 0:04:33]} 21. Rc5 {[%emt 0:02:18]} Rbc8 {[%emt 0:01:54]} 22. Nxg7 {[%emt 0:03:38]} (22. Rxc7 Rxc7 23. Bxc7 Ng6 $18) 22... Kxg7 {[%emt 0:00:08]} 23. Bxc7 {[%emt 0:00:09]} Nc6 {[%emt 0:04:58]} 24. Bb6 {[%emt 0:01:11] Weighted Error Value: White=0.06 (flawless) /Black=0.35.  Mistake:       	---       	Black=3      Inaccurate:     	White=1     	Black=2      OK:         	White=11    	Black=4      Strong:       	White=1     	---} 1-0

[Event "7th Sharjah Masters 2024"]
[Site "Sharjah"]
[Date "2024.05.14"]
[Round "1.10"]
[White "Mchedlishvili, Mikheil"]
[Black "Sevian, Samuel"]
[Result "1/2-1/2"]
[ECO "A13"]
[WhiteElo "2569"]
[BlackElo "2699"]
[Annotator "TA"]
[PlyCount "74"]
[EventDate "2024.05.13"]
[EventType "swiss"]
[EventCountry "UAE"]
[SourceTitle "playchess.com"]
[Source "ChessBase"]
[SourceQuality "1"]
[TimeControl "5400+30"]

{[%evp 9,74,20,27,19,6,8,3,5,11,23,16,6,0,7,26,0,0,0,0,0,4,12,6,-4,0,0,0,-1,10,16,14,14,61,58,61,53,58,43,79,89,79,85,81,85,92,88,99,116,110,110,129,110,131,108,122,80,110,12,16,7,12,0,0,0,0,0,0]} 1. Nf3 {[%emt 0:00:05]} d5 {[%emt 0:00:31]} 2. c4 {[%emt 0:00:59]} e6 {[%emt 0:02:04]} 3. g3 {[%emt 0:00:59]} Nf6 {[%emt 0:00:17]} 4. Bg2 {[%emt 0:00:40]} dxc4 {[%emt 0:03:34]} 5. Qa4+ {[%emt 0:01:04]} Bd7 {[%emt 0:01:32]} 6. Qxc4 {[%emt 0:01:12]} c5 {[%emt 0:00:12]} 7. Ne5 {[%emt 0:02:05]} Qc8 {[%emt 0:00:35]} 8. Qd3 {[%emt 0:02:06]} Bc6 {[%emt 0:02:09]} 9. Nxc6 {[%emt 0:02:37]} Nxc6 {[%emt 0:00:06]} 10. Nc3 {[%emt 0:04:26]} Be7 {[%emt 0:00:59]} 11. Qb5 {[%emt 0:09:41]} h5 {[%emt 0:09:11]} 12. h3 {[%emt 0:05:34]} O-O {[%emt 0:08:31][%cal Oh5h4]} 13. Bxc6 {[%emt 0:03:06]} bxc6 {[%emt 0:00:22]} 14. Qa4 {[%emt 0:00:39]} e5 {[%emt 0:00:07]} 15. d3 {[%emt 0:01:00]} Rd8 {[%emt 0:21:09]} 16. Bg5 {[%emt 0:07:54]} Rb8 {[%emt 0:02:41]} 17. Qc2 {[%emt 0:05:20]} Qe6 {[%emt 0:03:05]} 18. Kf1 {[%emt 0:19:18]} Rb4 {[%emt 0:07:55]} 19. a3 {[%emt 0:15:18]} Rb7 {[%emt 0:16:37]} 20. Kg2 {[%emt 0:00:24]} c4 {[%emt 0:01:20]} (20... Qf5 $11 {should be considered.} 21. Bxf6 Qxf6) 21. dxc4 $1 $14 {[%emt 0:01:49]} Qxc4 {[%emt 0:00:17]} 22. Rac1 {[%emt 0:00:48]} Qe6 {[%emt 0:05:57]} 23. Bxf6 {[%emt 0:02:32]} Bxf6 {[%emt 0:01:23]} 24. Na4 {[%emt 0:00:48][%cal Oa4c5] Nc5! is the strong threat.} Rc7 {[%emt 0:06:00][%cal Oc6c5]} 25. Nc5 {[%emt 0:00:35]} Qd5+ {[%emt 0:01:07]} 26. Ne4 {[%emt 0:04:52]} Qe6 {[%emt 0:01:32]} 27. Nxf6+ {[%emt 0:03:48]} Qxf6 {[%emt 0:00:08]} 28. Rhd1 {[%emt 0:00:03]} h4 {[%emt 0:01:34]} 29. g4 {[%emt 0:00:25]} c5 {[%emt 0:01:01]} 30. Rxd8+ {[%emt 0:00:49]} Qxd8 $16 {[%emt 0:00:05][%mdl 4096] Endgame. KQR-KQR} 31. Qe4 {[%emt 0:00:31]} Qd6 {[%emt 0:02:00]} 32. Rc3 {[%emt 0:00:39] White is more active.} Qd4 {[%emt 0:01:06]} 33. Qxd4 {[%emt 0:03:06]} (33. Qa8+ $16 Kh7 34. e3) 33... exd4 $11 {[%emt 0:00:01] The position is equal.} 34. Rc2 {[%emt 0:00:59]} Rb7 {[%emt 0:00:20]} 35. Rxc5 {[%emt 0:00:56]} Rxb2 {[%emt 0:00:02]} 36. Rc8+ {[%emt 0:00:21]} Kh7 {[%emt 0:00:01]} 37. Rc7 {[%emt 0:00:13]} f6 {[%emt 0:01:29] Weighted Error Value: White=0.09 (flawless) /Black=0.08 (flawless) .  Mistake:       	White=1     	Black=1      Inaccurate:     	White=2     	Black=2      OK:         	White=12    	Black=8      Best:        	White=1     	---        Strong:       	White=1     	---} (37... Rxe2 38. Rxf7 Re5 39. Rxa7) 1/2-1/2

[Event "7th Sharjah Masters 2024"]
[Site "Sharjah"]
[Date "2024.05.14"]
[Round "1.11"]
[White "Narayanan S L"]
[Black "Sanal, Vahap"]
[Result "1/2-1/2"]
[ECO "E17"]
[WhiteElo "2695"]
[BlackElo "2566"]
[Annotator "TA"]
[PlyCount "59"]
[EventDate "2024.05.13"]
[EventType "swiss"]
[EventCountry "UAE"]
[SourceTitle "playchess.com"]
[Source "ChessBase"]
[SourceQuality "1"]
[TimeControl "5400+30"]

{[%evp 13,59,13,29,27,21,25,20,20,26,19,25,23,64,16,43,45,43,0,0,0,0,0,0,0,0,-22,-19,-15,-17,-27,-20,-43,0,0,5,14,8,14,9,-25,19,34,27,0,0,-3,-7,-16]} 1. d4 {[%emt 0:00:03]} Nf6 {[%emt 0:00:18][%cal Bg8f6,Bf6e4,Be4d2][%mdl 32]} 2. c4 {[%emt 0:00:12]} e6 {[%emt 0:00:08]} 3. Nf3 {[%emt 0:00:10]} b6 {[%emt 0:01:21]} 4. g3 {[%emt 0:00:22]} Bb7 {[%emt 0:00:12]} 5. Bg2 {[%emt 0:00:10]} Be7 {[%emt 0:00:10]} 6. Nc3 {[%emt 0:00:22]} Ne4 {[%emt 0:00:22]} 7. Bd2 {[%emt 0:00:13]} Nxd2 {[%emt 0:00:32]} 8. Qxd2 {[%emt 0:00:08]} d6 {[%emt 0:00:29]} 9. Rd1 {[%emt 0:00:52]} Nd7 {[%emt 0:01:19]} 10. Qc2 {[%emt 0:00:11]} g6 {[%emt 0:03:30]} 11. h4 {[%emt 0:01:40][%cal Bh2h4,Bh4h5,Bh5h6][%mdl 32]} Bf6 {[%emt 0:07:53]} 12. h5 {[%emt 0:13:24]} a6 {[%emt 0:05:43]} 13. Ne4 {[%emt 0:07:18] White is more active.} (13. Kf1 $14) 13... Bg7 {[%emt 0:02:29]} 14. d5 {[%emt 0:13:46]} e5 {[%emt 0:03:19]} 15. h6 {[%emt 0:00:52]} Bf8 {[%emt 0:00:58]} 16. b4 {[%emt 0:00:46][%cal Oc4c5]} Be7 $1 {[%emt 0:01:21]} 17. c5 {[%emt 0:03:25] [#] Strongly threatening c6.} Nf6 {[%emt 0:08:00]} 18. Nxf6+ {[%emt 0:09:31]} Bxf6 {[%emt 0:01:33]} 19. Bh3 {[%emt 0:04:57]} O-O {[%emt 0:02:03]} 20. O-O {[%emt 0:04:21]} a5 {[%emt 0:01:02]} (20... dxc5 $6 21. bxc5 bxc5 22. e4 $16 (22. Qxc5 e4 $18)) 21. a3 {[%emt 0:01:03]} axb4 {[%emt 0:00:35]} 22. axb4 {[%emt 0:00:20]} bxc5 {[%emt 0:01:09]} ({Much weaker is} 22... dxc5 23. bxc5 bxc5 24. Bg2 $14 (24. Qxc5 e4 $11)) 23. bxc5 {[%emt 0:00:05]} dxc5 {[%emt 0:01:30]} 24. Bg2 {[%emt 0:04:01]} ({Much worse is} 24. Qxc5 e4 25. Nh2 Qd6 $15) 24... Ba6 {[%emt 0:03:09]} 25. Rfe1 $1 {[%emt 0:04:31]} c4 {[%emt 0:04:58]} 26. Nd2 {[%emt 0:01:08]} Bb5 {[%emt 0:03:37]} 27. Rb1 {[%emt 0:00:53]} (27. Nxc4 Ba4 28. Qd3 Bxd1 29. Rxd1 Rb8 $14) 27... Rb8 {[%emt 0:01:57]} 28. Nxc4 {[%emt 0:05:38]} Bxc4 {[%emt 0:00:15]} 29. Qxc4 {[%emt 0:00:10]} Bg5 {[%emt 0:02:57]} 30. e3 {[%emt 0:02:10] Weighted Error Value: White=0.10 (very precise) /Black=0.08 (flawless) .  Mistake:       	White=1     	---        Inaccurate:     	White=3     	Black=4      OK:         	White=6     	Black=7      Strong:       	White=1     	Black=1} 1/2-1/2